[Event "FTX Crypto Cup MCCT 2022"]
[Site "Miami"]
[Date "2022.08.11"]
[Round "3.1"]
[White "Giri, Anish"]
[Black "Firouzja, Alireza"]
[Result "1/2-1/2"]
[ECO "E04"]
[WhiteElo "2760"]
[BlackElo "2793"]
[Annotator "TA"]
[PlyCount "142"]
[EventDate "2022.08.10"]
[EventType "tourn"]
[EventCountry "USA"]
[SourceTitle "playchess.com"]
[Source "ChessBase"]
[SourceQuality "1"]
[TimeControl "900+10"]

{[%evp 18,142,37,29,31,10,15,20,27,25,22,11,18,13,9,14,19,28,29,27,23,30,27,20,22,17,14,20,18,15,31,22,22,20,46,35,39,38,54,54,51,39,57,56,54,54,54,57,91,66,137,129,91,78,122,102,100,83,99,66,81,44,49,52,52,45,44,44,44,41,41,6,15,0,0,0,0,0,0,0,0,0,0,0,0,0,0,0,0,0,0,0,0,-10,-10,-77,-36,-22,0,0,0,0,0,0,0,0,0,0,0,0,0,0,0,0,0,0,0,0,0,0,0,0,0,0,0,0,0]} 1. d4 {[%emt 0:00:00]} Nf6 {[%emt 0:00:00]} 2. c4 {[%emt 0:00:02]} e6 {[%emt 0:00:05]} 3. Nf3 {[%emt 0:00:01]} d5 {[%emt 0:00:07]} 4. g3 {[%emt 0:00:02]} dxc4 {[%emt 0:00:04]} 5. Bg2 {[%emt 0:00:01]} c5 {[%emt 0:00:01]} 6. O-O {[%emt 0:00:03]} Nc6 {[%emt 0:00:01]} 7. dxc5 {[%emt 0:00:04]} Qxd1 {[%emt 0:00:03]} 8. Rxd1 {[%emt 0:00:00]} Bxc5 {[%emt 0:00:01]} 9. Nbd2 {[%emt 0:00:00]} c3 {[%emt 0:00:04]} 10. bxc3 {[%emt 0:00:02]} O-O {[%emt 0:00:03] E04: Open Catalan: 5 Nf3.} 11. c4 {[%emt 0:00:34]} Rd8 {[%emt 0:01:07]} 12. Bb2 {[%emt 0:00:11]} Bd7 {[%emt 0:01:17]} 13. Nb3 {[%emt 0:00:13]} Be7 {[%emt 0:00:02]} 14. Nfd4 {[%emt 0:00:02]} Rac8 {[%emt 0:00:07]} 15. Nb5 {[%emt 0:00:01]} b6 {[%emt 0:00:40]} 16. Nd6 {[%emt 0:00:13]} Rc7 {[%emt 0:00:15]} 17. Ba3 {[%emt 0:00:02]} Ne5 {[%emt 0:00:29]} 18. Nb5 {[%emt 0:00:04]} Bxb5 {[%emt 0:00:01]} 19. Rxd8+ {[%emt 0:00:04]} Bxd8 {[%emt 0:00:02]} 20. cxb5 {[%emt 0:00:00]} Nc4 {[%emt 0:04:58] Inhibits Bd6.} 21. Rd1 {[%emt 0:00:22]} Rd7 {[%emt 0:01:58]} 22. Rxd7 {[%emt 0:00:05]} Nxd7 {[%emt 0:00:01]} 23. Bb4 {[%emt 0:00:10] [#]} Bf6 $146 {[%emt 0:00:04]} ({Predecessor:} 23... Bc7 24. e3 Bd6 25. Bc3 Na3 26. Bf1 Nc2 27. e4 Bb4 28. Bb2 Kf8 29. Bd3 Ne1 {½-½ (42) Dutra,A (2406)-Seelig,J (2327) ICCF email 2017}) 24. e3 {[%emt 0:02:47]} Bb2 {[%emt 0:00:17]} 25. Bf1 {[%emt 0:00:20]} Nce5 {[%emt 0:00:39]} 26. f4 {[%emt 0:05:57]} Ng4 {[%emt 0:00:09]} 27. e4 {[%emt 0:02:32]} Ngf6 {[%emt 0:00:55]} 28. Bd3 {[%emt 0:00:24]} e5 {[%emt 0:00:38]} 29. Kg2 {[%emt 0:00:15]} h6 {[%emt 0:00:16]} 30. f5 {[%emt 0:01:10]} g6 {[%emt 0:00:10]} 31. fxg6 {[%emt 0:00:20]} fxg6 {[%emt 0:00:01]} 32. Kf3 {[%emt 0:00:02]} Kf7 {[%emt 0:00:26]} 33. Bc4+ {[%emt 0:00:17]} Ke8 {[%emt 0:00:01] [#]} (33... Kg7 $14) 34. a4 $1 $16 {[%emt 0:00:14]} g5 {[%emt 0:00:47]} 35. h3 {[%emt 0:00:14]} Kd8 {[%emt 0:00:10]} 36. Be6 {[%emt 0:00:21]} Bd4 {[%emt 0:01:48]} 37. Bf5 {[%emt 0:01:20]} Bc5 {[%emt 0:00:26]} 38. Bd2 {[%emt 0:00:48]} Bf8 {[%emt 0:00:57]} 39. h4 {[%emt 0:00:05]} gxh4 {[%emt 0:00:01]} 40. gxh4 {[%emt 0:00:00]} Ne8 {[%emt 0:00:19]} 41. Bc3 {[%emt 0:01:15] Black must now prevent Bxd7. A strong pair of Bishops.} Bg7 {[%emt 0:00:02]} 42. Bb4 {[%emt 0:00:04]} Bf6 {[%emt 0:00:26]} 43. Kg4 {[%emt 0:00:15] Hoping for Bd2.} Ng7 $1 {[%emt 0:00:06]} 44. h5 {[%emt 0:00:02] [#] Threatens to win with Bd2.} Be7 {[%emt 0:00:09]} 45. Bxd7 {[%emt 0:00:47]} Bxb4 $11 {[%emt 0:00:04][%mdl 4096] Endgame KBN-KBN} 46. Bf5 {[%emt 0:00:17]} Ne8 {[%emt 0:00:49]} 47. Kf3 {[%emt 0:00:32]} Ke7 {[%emt 0:00:19]} 48. Nc1 {[%emt 0:00:02]} Nd6 {[%emt 0:00:05]} 49. Nd3 {[%emt 0:00:11][%csl LRb4,LRe5]} Bc3 {[%emt 0:00:01]} 50. Bg6 {[%emt 0:00:03]} Kf6 {[%emt 0:00:01]} 51. Kg4 {[%emt 0:00:13]} Nc4 {[%emt 0:00:03]} 52. Kf3 {[%emt 0:00:01]} Kg5 {[%emt 0:00:07]} 53. Kg3 {[%emt 0:00:07]} Ne3 {[%emt 0:00:16]} 54. Kf3 {[%emt 0:00:15]} Ng4 {[%emt 0:00:02]} 55. Nf2 {[%emt 0:00:34]} Nf6 {[%emt 0:00:01]} 56. Nh3+ {[%emt 0:00:05]} Kh4 {[%emt 0:00:01]} 57. Nf2 {[%emt 0:00:01]} Nxh5 {[%emt 0:00:09] The position is equal.} 58. Bxh5 {[%emt 0:00:12]} Kxh5 {[%emt 0:00:02] KB-KN} 59. Ng4 $1 {[%emt 0:00:11]} Kg5 {[%emt 0:00:07]} 60. Ne3 {[%emt 0:00:03]} Bd4 {[%emt 0:00:40]} 61. Nc4 {[%emt 0:00:06]} h5 {[%emt 0:01:09][%cal Bh6h5,Bh5h4,Bh4h3,Bh3h2][%mdl 32] Strongly threatening ...Kh4.} 62. Nd6 $1 {[%emt 0:00:01]} h4 {[%emt 0:00:08]} 63. Nc8 {[%emt 0:00:04]} h3 {[%emt 0:00:03]} 64. Nxa7 {[%emt 0:00:02]} h2 {[%emt 0:00:01]} 65. Kg2 {[%emt 0:00:00]} Kf4 {[%emt 0:00:01]} 66. Nc6 {[%emt 0:00:03] aiming for a5.} Kxe4 {[%emt 0:00:43]} (66... Bg1 $5) 67. a5 {[%emt 0:00:02]} bxa5 {[%emt 0:00:02]} 68. Nxa5 {[%emt 0:00:25]} Kd5 {[%emt 0:00:34] ...e4 is the strong threat.} 69. Nc6 {[%emt 0:00:05]} Kc5 {[%emt 0:00:05]} 70. Kxh2 {[%emt 0:00:21]} Kxb5 {[%emt 0:00:06]} 71. Nxe5 {[%emt 0:00:02]} Bxe5+ {[%emt 0:00:01] Weighted Error Value: White=0.07 (flawless) /Black=0.06 (flawless)} 1/2-1/2

[Event "FTX Crypto Cup MCCT 2022"]
[Site "Miami"]
[Date "2022.08.11"]
[Round "3.1"]
[White "Le, Quang Liem"]
[Black "Duda, Jan-Krzysztof"]
[Result "1-0"]
[ECO "E03"]
[WhiteElo "2722"]
[BlackElo "2750"]
[Annotator "TA"]
[PlyCount "131"]
[EventDate "2022.08.10"]
[EventType "tourn"]
[EventCountry "USA"]
[SourceTitle "playchess.com"]
[Source "ChessBase"]
[SourceQuality "1"]
[TimeControl "900+10"]

{[%evp 15,131,-20,-11,-12,-20,-36,-12,-12,-22,-21,-9,-81,-37,-39,-43,-41,-45,-50,-28,-58,-56,-68,-73,-71,-65,-78,-66,-89,-69,-91,-82,-100,-101,-102,-83,-107,-104,-120,-116,-125,-111,-121,-120,-100,-106,-108,-78,-102,-52,-61,-69,-95,-60,-73,-31,-75,-8,-91,-37,-54,-43,-51,-29,-62,-7,-16,-18,-63,-63,-59,-30,-32,0,-8,0,0,0,0,0,0,247,232,192,81,29991,157,29958,510,961,574,566,577,577,577,549,549,808,800,620,612,612,611,29961,29960,9614,7285,29965,29965,29975,29974,29973,29971,29973,29972,29975,29975,29975,29967]} 1. c4 {[%emt 0:00:00]} e6 {[%emt 0:00:00]} 2. Nf3 {[%emt 0:00:04]} d5 {[%emt 0:00:04]} 3. d4 {[%emt 0:00:02]} Nf6 {[%emt 0:00:02]} 4. g3 {[%emt 0:00:03]} dxc4 {[%emt 0:00:07]} 5. Qa4+ {[%emt 0:00:05]} Nbd7 {[%emt 0:00:19]} 6. Bg2 {[%emt 0:00:27]} a6 {[%emt 0:00:07]} 7. Qxc4 {[%emt 0:00:05]} b5 {[%emt 0:00:05]} 8. Qd3 {[%emt 0:01:50]} Bb7 {[%emt 0:00:11]} 9. O-O {[%emt 0:00:18] E03: Open Catalan: 5 Qa4+ Nbd7 6 Qxc4.} c5 {[%emt 0:00:03]} 10. a4 {[%emt 0:00:55]} cxd4 {[%emt 0:01:44] next ...e5 is good for Black.} (10... c4 {seems wilder.} 11. Qc2 Be7 12. Ne5 Nd5) 11. axb5 {[%emt 0:01:05] The position is equal.} axb5 {[%emt 0:00:00]} 12. Rxa8 {[%emt 0:00:04]} Qxa8 {[%emt 0:00:00] [#]} 13. Na3 $146 {[%emt 0:00:57]} (13. Qxd4 $11 Bc5 14. Qd3) ({Predecessor:} 13. Qxd4 Bc5 14. Qd1 O-O 15. Ne1 Bxg2 {½-½ (15) Kurajica,B (2514)-Brkic,A (2575) Bol 2013}) 13... Bxa3 {[%emt 0:02:04]} 14. bxa3 {[%emt 0:00:00]} e5 {[%emt 0:00:02]} 15. Qxb5 {[%emt 0:01:04]} O-O {[%emt 0:00:05]} 16. Bd2 $1 {[%emt 0:01:32]} d3 {[%emt 0:03:44]} (16... Ba6 17. Qa5 $11) (16... Bxf3 $5 17. Bxf3 Qxa3 $15) 17. Nh4 {[%emt 0:01:53]} (17. Qxd3 $2 e4 18. Qc3 exf3 19. exf3 h6 $19) 17... dxe2 {[%emt 0:00:42]} 18. Qxe2 {[%emt 0:02:32]} Bxg2 {[%emt 0:00:02]} 19. Nxg2 {[%emt 0:00:00]} Qxa3 {[%emt 0:00:02]} 20. Rc1 {[%emt 0:00:22]} Qa2 {[%emt 0:00:26]} 21. Nh4 {[%emt 0:00:38]} Re8 {[%emt 0:01:51]} 22. Qd3 {[%emt 0:00:16]} h6 {[%emt 0:01:27]} 23. h3 {[%emt 0:00:23]} e4 {[%emt 0:00:47]} 24. Qd6 {[%emt 0:01:00]} Re6 {[%emt 0:00:35]} 25. Qd4 {[%emt 0:00:04]} Re5 {[%emt 0:00:03]} 26. Be3 {[%emt 0:01:36]} Qe6 {[%emt 0:00:13]} 27. Kh2 {[%emt 0:00:06]} g5 {[%emt 0:01:00]} 28. Ng2 {[%emt 0:00:08]} Rd5 {[%emt 0:00:00]} 29. Qa1 {[%emt 0:00:21]} Ne5 {[%emt 0:00:07] ( -> ...Nf3+)} 30. Ne1 {[%emt 0:00:10]} Qd6 {[%emt 0:01:28]} 31. Kg2 {[%emt 0:00:52]} Kg7 {[%emt 0:00:15]} ({Better is} 31... Kh7 $17 32. Qc3 Nd3) 32. Nc2 $15 {[%emt 0:00:15]} Nf3 {[%emt 0:01:17] Inhibits Bd4.} 33. Rb1 {[%emt 0:00:24]} Qd8 {[%emt 0:00:34]} 34. Ne1 {[%emt 0:00:29]} Ne5 {[%emt 0:00:05]} 35. Nc2 {[%emt 0:00:02]} Kg6 {[%emt 0:00:55]} (35... Qc7 $17 36. Nd4 Kg6) 36. Nd4 {[%emt 0:00:28]} (36. Bb6 $11 Qd6 37. Ne3) 36... Qa5 {[%emt 0:00:27]} (36... Ra5 $17 37. Qb2 Qa8) 37. Qb2 {[%emt 0:00:14]} Qa6 {[%emt 0:00:08]} 38. Qb8 {[%emt 0:00:28]} Ned7 {[%emt 0:00:14] Against Rb6} (38... Qd6 $5 {[%cal Rd5d4]} 39. Qxd6 Rxd6 $17) 39. Qb4 {[%emt 0:00:11]} Ra5 {[%emt 0:00:04]} (39... h5 $15) 40. Qe7 {[%emt 0:00:07]} Re5 {[%emt 0:00:08]} 41. Qb4 {[%emt 0:00:03]} Nd5 {[%emt 0:00:04]} 42. Qb2 {[%emt 0:00:10]} f5 {[%emt 0:00:06]} 43. Ra1 {[%emt 0:00:18]} Qd3 {[%emt 0:00:17] ...f4 is the strong threat.} 44. Ra3 {[%emt 0:00:05]} Qd1 {[%emt 0:00:10] aiming for ...f4.} 45. Ra6+ {[%emt 0:00:05]} N7f6 {[%emt 0:00:12] Threatens to win with ...f4. Pair of Knights!} 46. Nc6 {[%emt 0:00:18] Really sharp!} Re8 {[%emt 0:00:17] White must now prevent ...g4.} 47. Kh2 {[%emt 0:00:10] And now Ne5+ would win.} f4 $2 {[%emt 0:00:08]} (47... Nxe3 $11 48. Ne7+ Kh7 49. Qxf6 (49. fxe3 Rxe7 50. Qxf6 Qe2+ 51. Kh1 Qe1+ 52. Kh2 Qf2+ 53. Kh1 Qf1+ 54. Kh2 Qf2+ 55. Kh1 Qf3+ 56. Kh2 Qf2+ $11) 49... Nf1+ 50. Kg2 Ne3+ 51. Kh2 (51. fxe3 Qe2+ 52. Kg1 Qe1+ 53. Kh2 Qf2+ 54. Kh1 Qf1+ 55. Kh2 Qf2+ 56. Kh1 Qf1+ 57. Kh2 Qf2+ $11) 51... Nf1+ 52. Kg2 Ne3+ 53. Kh2 (53. fxe3 Qe2+ 54. Kg1 Qe1+ 55. Kh2 Qf2+ 56. Kh1 Qe1+ 57. Kh2 Qf2+ 58. Kh1 Qe1+ 59. Kh2 $11)) 48. gxf4 $1 $18 {[%emt 0:00:07]} gxf4 {[%emt 0:00:00]} 49. Bxf4 {[%emt 0:00:01]} (49. Ne5+ Rxe5 50. Qxe5 fxe3 $11) (49. Bd4 $1 $18 {[%cal Rd4f6] and the rest is easy. Hoping for Bxf6.} f3 50. Ra1) 49... Kh5 $2 {[%emt 0:00:19][%mdl 8192] [#]} (49... Nxf4 $2 50. Ne7+ $1 {[%mdl 512]} Kh7 51. Qxf6 $18) (49... Qh5 $16 50. Nb4 (50. Ne5+ Kh7 $11) 50... Kf7) 50. Ra5 $2 {[%emt 0:00:12]} (50. Ne7 $1 {[%mdl 512] mates} Qg4 (50... Rxe7 51. Rxf6) 51. hxg4+ Kxg4 52. Bxh6 $1 Rxe7 53. Rxf6 Nxf6 54. Qxf6 Re5 55. f3+ exf3 56. Qxe5 f2 57. Qf4+ Kh5 58. Qg5#) 50... Rg8 $2 {[%emt 0:00:08] This costs Black the game.} (50... Qf3 $16 51. Bg3 (51. Qxf6 Qxf2+ 52. Kh1 Qf3+ 53. Kh2 Qf2+ 54. Kh1 Qf3+ 55. Kh2 Qf2+ $11) 51... e3) 51. Bg3 {[%emt 0:00:08]} (51. Rxd5+ $142 Nxd5 52. Qe5+ Kg6 53. Qe6+ Kg7 54. Be5+ Kf8 55. Qf5+ Ke8 56. Qc8+ Kf7 57. Qd7+ Kg6 58. Qe6+ Kh5 59. Qxg8) 51... Rg5 {[%emt 0:00:02]} (51... Kg6 $142 52. Ne5+ (52. Qe5 Qh5 $18) 52... Kf5) 52. Ra1 {[%emt 0:00:14]} ({Inferior is} 52. Qb7 {[#]} Rxg3 $1 53. fxg3 Qe2+ 54. Kh1 Qf3+ 55. Kh2 Qf2+ 56. Kh1 Qxg3 57. Rxd5+ Nxd5 58. Qf7+ Kh4 59. Qxd5 Qf3+ 60. Kh2 Qxh3+ 61. Kg1 Qg3+ 62. Kf1 Qf4+ 63. Ke2 Qf3+ 64. Ke1 Qh1+ 65. Ke2 Qg2+ 66. Ke3 Qg5+ 67. Qxg5+ hxg5 $11) 52... Qf3 {[%emt 0:00:26][%cal Od5f4]} 53. Ne5 {[%emt 0:00:02]} Rxe5 {[%emt 0:00:06]} 54. Qxe5+ {[%emt 0:00:02]} Kg6 {[%emt 0:00:00]} 55. Bh4 {[%emt 0:00:25]} e3 {[%emt 0:00:18]} 56. Rg1+ {[%emt 0:00:03]} Kf7 {[%emt 0:00:12]} 57. Bxf6 {[%emt 0:00:01]} Nxf6 {[%emt 0:00:16]} 58. Qxe3 {[%emt 0:00:03][%mdl 4096] Endgame KQR-KQN} Qf5 {[%emt 0:00:06]} 59. Rg2 {[%emt 0:00:22]} Qd5 {[%emt 0:00:14]} 60. Qf4 {[%emt 0:00:09] Intending Rg3 and mate.} Qc6 {[%emt 0:00:11]} 61. Rg3 {[%emt 0:00:06] White mates.} h5 {[%emt 0:00:08]} 62. Rg5 {[%emt 0:00:05]} Ke7 {[%emt 0:00:10]} 63. Re5+ {[%emt 0:00:02]} Kd8 {[%emt 0:00:05]} 64. Rf5 {[%emt 0:00:08]} Ke7 {[%emt 0:00:16]} 65. Qe5+ {[%emt 0:00:04]} Kf7 {[%emt 0:00:20]} 66. Kg3 {[%emt 0:00:08] Weighted Error Value: White=0.52/Black=0.75} 1-0

[Event "FTX Crypto Cup MCCT 2022"]
[Site "Miami"]
[Date "2022.08.11"]
[Round "3.1"]
[White "Niemann, Hans Moke"]
[Black "Praggnanandhaa R"]
[Result "1-0"]
[ECO "B30"]
[WhiteElo "2688"]
[BlackElo "2648"]
[Annotator "TA"]
[PlyCount "127"]
[EventDate "2022.08.10"]
[EventType "tourn"]
[EventCountry "USA"]
[SourceTitle "playchess.com"]
[Source "ChessBase"]
[SourceQuality "1"]
[TimeControl "900+10"]

{[%evp 9,127,8,43,29,31,23,29,35,24,34,19,31,37,36,33,31,29,42,44,9,16,16,14,15,20,15,14,0,58,41,67,67,55,62,65,64,70,81,81,70,99,95,108,114,113,126,125,117,132,113,113,112,105,110,141,128,127,89,135,120,116,60,130,142,158,117,135,135,203,192,202,206,95,189,194,141,137,133,142,143,168,155,215,212,338,329,516,510,543,536,513,493,566,565,548,513,535,516,910,885,29951,10213,5137,5183,29972,29971,29977,29977,29979,29979,29980,29981,29983,29981,29984,29985,29985,29986,29986,29987]} 1. e4 {[%emt 0:00:00]} c5 {[%emt 0:00:00]} 2. Nf3 {[%emt 0:00:04]} Nc6 {[%emt 0:00:02]} 3. Bb5 {[%emt 0:00:01]} e6 {[%emt 0:00:01]} 4. O-O {[%emt 0:00:06]} Nge7 {[%emt 0:00:02]} 5. Re1 {[%emt 0:00:01]} h6 {[%emt 0:00:15]} 6. b3 {[%emt 0:02:42] B30: Sicilian: 2...Nc6 3 Bb5, lines without ...g6.} a6 {[%emt 0:00:04]} 7. Bxc6 {[%emt 0:00:01]} Nxc6 {[%emt 0:00:01]} 8. Bb2 {[%emt 0:00:00] White has an edge.} b5 {[%emt 0:00:01]} 9. a4 {[%emt 0:00:01] And now axb5 would win.} b4 {[%emt 0:00:10]} 10. d3 {[%emt 0:00:03] [#]} d6 $146 {[%emt 0:00:05]} ({Predecessor:} 10... h5 11. Nbd2 f6 12. e5 d5 13. exd6 Bxd6 14. Nc4 Bc7 15. Qe2 Qd5 16. Rad1 e5 {½-½ (32) Nguyen,T (2612)-Tabatabaei,M (2650) Jermuk 2022}) 11. d4 $1 {[%emt 0:00:06] Inhibits e5.} cxd4 {[%emt 0:00:22]} 12. Nxd4 {[%emt 0:00:03]} Nxd4 {[%emt 0:00:09]} 13. Qxd4 {[%emt 0:02:12]} Rb8 {[%emt 0:00:20]} 14. Nd2 {[%emt 0:00:26][%cal Bb1d2,Bd2c4,Bc4d6][%mdl 32]} e5 $1 {[%emt 0:00:08]} 15. Qd3 {[%emt 0:00:11]} Be7 {[%emt 0:00:05]} 16. Rad1 {[%emt 0:02:45]} O-O {[%emt 0:03:59]} 17. Nc4 $36 {[%emt 0:00:05][%cal Rc4d6][%mdl 2048] White is pushing.} Bg4 {[%emt 0:00:02]} 18. Rd2 {[%emt 0:00:34]} Qc8 {[%emt 0:07:19]} (18... Bg5 $11) 19. Nxd6 {[%emt 0:03:12]} Qe6 {[%emt 0:00:42] Hoping for ...Rbd8.} 20. Qd5 {[%emt 0:01:28]} (20. Qxa6 Rfd8 $11) 20... Qxd5 {[%emt 0:00:33]} 21. Rxd5 {[%emt 0:00:03]} f6 {[%emt 0:00:01]} 22. Nf5 {[%emt 0:01:15] White is more active.} Bxf5 {[%emt 0:00:22]} 23. exf5 {[%emt 0:00:00]} Rfc8 {[%emt 0:00:55]} 24. Re2 {[%emt 0:00:05]} h5 {[%emt 0:00:28]} 25. Kf1 {[%emt 0:00:10]} Rb7 {[%emt 0:00:19]} 26. Ke1 {[%emt 0:00:05]} Kf7 {[%emt 0:00:14]} 27. Bc1 {[%emt 0:00:16]} Bc5 {[%emt 0:01:37]} 28. Kd1 {[%emt 0:00:39]} Rc6 {[%emt 0:00:19]} 29. f3 {[%emt 0:00:21]} g6 {[%emt 0:00:09]} 30. fxg6+ {[%emt 0:00:06]} Kxg6 {[%emt 0:00:00]} 31. f4 {[%emt 0:00:29]} Bd4 {[%emt 0:00:07]} 32. fxe5 {[%emt 0:00:03]} Bxe5 {[%emt 0:00:20]} 33. h3 {[%emt 0:00:06]} Rg7 {[%emt 0:00:17]} (33... Rbc7 $142) 34. Bd2 $16 {[%emt 0:00:12]} Rb6 {[%emt 0:00:08]} 35. Ke1 {[%emt 0:00:40]} (35. Rd8 $16) 35... Kf5 {[%emt 0:00:12]} ({Black should try} 35... Bg3+ $14 36. Kd1 Rd6 37. Rxd6 Bxd6) 36. Rc5 {[%emt 0:00:13]} Rd7 {[%emt 0:00:37]} 37. Rc4 {[%emt 0:00:33]} Rbd6 {[%emt 0:00:04]} 38. g4+ {[%emt 0:01:03]} (38. Rxb4 {[#]} Rxd2 $1 {[%mdl 512]} 39. Rxd2 (39. g4+ hxg4 40. Rxd2 Bc3 $17) 39... Bc3 $17) (38. Bxb4 $6 Rd1+ 39. Kf2 Bd4+ 40. Kg3 h4+ 41. Kxh4 Rh7+ 42. Kg3 Rg7+ 43. Kh4 Rh7+ 44. Kg3 Rg7+ 45. Kh4 Rh7+ $11) 38... hxg4 {[%emt 0:00:03]} (38... Kg6 $16) 39. hxg4+ $18 {[%emt 0:00:00]} Kg6 {[%emt 0:00:07]} 40. Bxb4 {[%emt 0:00:43]} Rd1+ {[%emt 0:00:01]} 41. Kf2 {[%emt 0:00:01]} Rh7 {[%emt 0:00:29]} 42. Re1 {[%emt 0:00:17]} (42. Bd2 $18) 42... Rd5 {[%emt 0:00:12]} 43. Kf3 {[%emt 0:00:27]} Rh3+ {[%emt 0:00:13]} 44. Ke4 {[%emt 0:00:03]} Rd7 {[%emt 0:00:06]} 45. Bc5 {[%emt 0:00:16]} Kg5 {[%emt 0:00:23]} (45... Rh4 $16 {was necessary.}) 46. Rg1 {[%emt 0:00:16]} Bf4 {[%emt 0:00:15]} (46... Rh2 $142 47. b4 Rb7) 47. Bd4 {[%emt 0:00:17]} Bg3 {[%emt 0:00:11]} (47... Re7+ $142 48. Kd5 Be3) 48. Rc5+ {[%emt 0:00:05]} Kg6 {[%emt 0:00:12][%cal Od7d4]} 49. Rh5 {[%emt 0:00:11]} Bh4 {[%emt 0:00:20]} 50. Rf1 {[%emt 0:00:03]} Rh2 {[%emt 0:00:10] [#]} 51. Bxf6 {[%emt 0:00:12][%mdl 512]} Rf7 {[%emt 0:00:14]} (51... Re2+ 52. Kf3) 52. Be5 {[%emt 0:00:23] Rxf7 is the strong threat.} (52. Rxh4 Rxh4 53. Bxh4 Rxf1 $16) (52. Bxh4 Rxf1 53. Kd3 Rd1+ 54. Kc3 Rdd2 $11) 52... Re2+ {[%emt 0:00:02]} 53. Kd3 {[%emt 0:00:07]} Rxe5 {[%emt 0:00:05]} (53... Rxf1 $142 54. Kxe2 Re1+ 55. Kd2 Re4 56. Rxh4 Rxe5) 54. Rxf7 {[%emt 0:00:10]} ({Less strong is} 54. Rxe5 Rxf1 55. Re6+ Kf7 56. Rxa6 Rf3+ 57. Ke4 Rc3 $14) 54... Rxh5 {[%emt 0:00:03]} 55. gxh5+ {[%emt 0:00:05]} Kxf7 {[%emt 0:00:01][%mdl 4096] Endgame KB-KP} 56. b4 {[%emt 0:00:05]} Kg7 {[%emt 0:00:12]} 57. Kd4 {[%emt 0:00:13] White mates.} ({And not} 57. b5 axb5 58. a5 (58. axb5 Kh6 $11) 58... Bf2 $11) 57... Kh6 {[%emt 0:00:06]} 58. c4 {[%emt 0:00:09][%cal Bc2c4,Bc4b5][%mdl 32]} Kxh5 {[%emt 0:00:09]} 59. b5 {[%emt 0:00:19]} axb5 {[%emt 0:00:14]} 60. cxb5 {[%emt 0:00:00]} Kg6 {[%emt 0:00:01]} 61. Kd5 {[%emt 0:00:04]} Kf7 {[%emt 0:00:11]} 62. a5 {[%emt 0:00:12][%cal Ba4a5,Ba5a6][%mdl 32]} Ke7 {[%emt 0:00:09]} 63. a6 {[%emt 0:00:03]} ({Worse is} 63. b6 Kd7 $11) 63... Bf2 {[%emt 0:00:08]} 64. Kc6 {[%emt 0:00:01] Weighted Error Value: White=0.07 (flawless) /Black=0.43} 1-0